fUST/lending_fUST_20241019
["ID","MTS","AMOUNT","RATE_DAILY","PERIOD"]
[340486703,1729312232095,-184.38426,0.00013315,2]
[340486704,1729312232104,-153.0,0.00013341,2]
[340486705,1729312232114,-153.0,0.00013341,2]
[340486706,1729312232123,-184.38426,0.0001335,2]
[340486707,1729312232132,-300.0,0.00013377,2]
[340486708,1729312232142,-300.0,0.00013377,2]
[340486709,1729312232153,-153.0,0.00013378,2]
[340486710,1729312232163,-210.618349,0.00013378,2]
[340486711,1729312232173,-210.618349,0.00013378,2]
[340486712,1729312232182,-153.0,0.00013378,2]
[340486713,1729312232192,-210.618349,0.00013378,2]
[340486714,1729312232201,-210.618349,0.00013378,2]
[340486715,1729312232212,-184.38426,0.00013385,2]
[340486716,1729312232223,-153.0,0.00013397,2]
[340486717,1729312232235,-184.38426,0.0001342,2]
[340486718,1729312232245,-184.38426,0.00013455,2]
[340486719,1729312232256,-154.2007328,0.00013478,2]
[340486720,1729312232266,-153.0,0.00013478,2]
[340486721,1729312232277,-210.618349,0.00013478,2]
[340486722,1729312232289,-210.4166343,0.00013671,2]
[340486723,1729312232299,-3024.696883,0.00013699,2]
[340486724,1729312232308,-250.0,0.00013699,2]
[340486725,1729312232319,-8828.99135112,0.00013752,2]
[340486726,1729312232328,-306.0,0.00013752,2]
[340486727,1729312232337,-1699.91110142,0.0001378,2]
[340486728,1729312232347,-500.0,0.00013838,2]
[340486729,1729312232356,-1515.28,0.00013838,2]
[340486730,1729312232365,-1187.77,0.00013838,2]
[340486731,1729312232374,-500.0,0.00013838,2]
[340486732,1729312232383,-500.0,0.00013838,2]
[340486733,1729312232393,-5439.41,0.00013838,2]
[340486734,1729312232402,-38570.02,0.00013838,2]
[340486735,1729312232411,-627.83,0.00013838,2]
[340486736,1729312232421,-4684.53,0.00013838,2]
[340486737,1729312232430,-500.0,0.00013838,2]
[340486738,1729312232439,-500.0,0.00013838,2]
[340486739,1729312232450,-934.8,0.00013838,2]
[340486740,1729312232462,-500.0,0.00013866,2]
[340486741,1729312232473,-500.0,0.00013866,2]
[340486742,1729312232484,-697.93,0.00013866,2]
[340486743,1729312232494,-502.84450713,0.0001388,2]
[340486744,1729312232505,-318.23438823,0.0001389,2]
[340486745,1729312232515,-46382.8890645,0.00013965,2]
[340486746,1729312232528,-300.0,0.00013965,2]
[340486761,1729312237906,-399.8828446,0.00013838,2]
[340486763,1729312237917,-3108.30592128,0.00013965,2]
[340486774,1729312238072,-257.09,0.00013965,2]
[340486775,1729312238084,-319.2398709,0.00013965,2]
[340487090,1729312245723,-779.26,0.00013838,2]
[340487092,1729312245733,-500.0,0.00013866,2]
[340487094,1729312245742,-6611.10723446,0.00013965,2]
[340487298,1729312887991,600.0,0.00027,60]
[340487349,1729313431937,-177.96,0.00010959,2]
[340487350,1729313431948,-889.84,0.00010959,2]
[340487351,1729313431958,-384.3419807,0.00012768,2]
[340487354,1729313431968,-300.0,0.00013698,2]
[340487356,1729313431978,-2160.951947,0.00013699,2]
[340487358,1729313431988,-592.104116,0.00013699,2]
[340487359,1729313431997,-237.5,0.00013699,2]
[340487361,1729313432006,-1487.42221376,0.00013754,2]
[340487363,1729313432015,-286.41094938,0.00013845,2]
[340487365,1729313432024,-301305.95511694,0.00013846,2]
[340487377,1729313439925,-1044.8,0.00013699,2]
[340487404,1729313443111,-395.834631,0.00013699,2]
[340487405,1729313443122,-49.265369,0.00013846,2]
[340487406,1729313443136,-138169.88640106,0.00013846,2]
[340487407,1729313443147,-500.0,0.00013854,2]
[340487408,1729313443157,-1452.14,0.00013854,2]
[340487409,1729313443167,-1138.28,0.00013854,2]
[340487410,1729313443176,-500.0,0.00013854,2]
[340487411,1729313443185,-500.0,0.00013854,2]
[340487412,1729313443194,-5212.77,0.00013854,2]
[340487413,1729313443203,-601.67,0.00013854,2]
[340487414,1729313443212,-7793.84462291,0.00013854,2]
[340487446,1729313446058,-500.0,0.00013845,2]
[340487448,1729313446068,-419.63264178,0.00013854,2]
[340487504,1729313675858,309.41,0.00027,60]
[340487573,1729314632032,-300.0,0.00012744,2]
[340487575,1729314632043,-256.07514106,0.00012745,2]
[340487621,1729314638392,-6392.67197605,0.00012745,2]
[340487622,1729314638448,-4025.44601597,0.00012745,2]
[340487624,1729314640068,-763.35002962,0.00012745,2]
[340487625,1729314640080,-1220.45936198,0.00012745,2]
[340487626,1729314640091,-590.17356754,0.00012745,2]
[340487627,1729314640103,-11651.82390778,0.00012745,2]
[340487628,1729314640112,-2689.8817887,0.00012777,2]
[340487629,1729314640121,-3000.0,0.00012805,2]
[340487630,1729314640131,-255.9073423,0.00013599,2]
[340487631,1729314640146,-576.269071,0.00013699,2]
[340487632,1729314640157,-225.625,0.00013699,2]
[340487633,1729314640166,-1207.463716,0.00013699,2]
[340487634,1729314640176,-150.112233,0.000138,2]
[340487635,1729314640185,-155.368924,0.000138,2]
[340487636,1729314640194,-153.0,0.000138,2]
[340487637,1729314640203,-150.112233,0.000138,2]
[340487638,1729314640212,-150.112233,0.000138,2]
[340487640,1729314640223,-150.112233,0.000138,2]
[340487642,1729314640232,-150.112233,0.000138,2]
[340487643,1729314640244,-150.112233,0.000138,2]
[340487644,1729314640254,-150.112233,0.000138,2]
[340487645,1729314640263,-500.0,0.00013833,2]
[340487646,1729314640272,-1391.64,0.00013833,2]
[340487647,1729314640283,-1090.86,0.00013833,2]
[340487648,1729314640293,-500.0,0.00013833,2]
[340487649,1729314640304,-4995.57,0.00013833,2]
[340487650,1729314640314,-500.0,0.00013833,2]
[340487651,1729314640324,-576.6,0.00013833,2]
[340487652,1729314640333,-36620.71,0.00013833,2]
[340487653,1729314640344,-500.0,0.00013833,2]
[340487654,1729314640355,-500.0,0.00013833,2]
[340487655,1729314640366,-4489.34,0.00013833,2]
[340487656,1729314640377,-895.85,0.00013833,2]
[340487657,1729314640388,-500.0,0.00013833,2]
[340487658,1729314640400,-1234.57,0.00013833,2]
[340487659,1729314640411,-746.79,0.00013833,2]
[340487660,1729314640422,-89581.4383335,0.00013833,2]
[340487661,1729314640432,-21333.51035122,0.00013833,2]
[340487662,1729314640444,-285.29888257,0.00013833,2]
[340487663,1729314640458,-9629.8559995,0.00013833,2]
[340487667,1729314643217,-630.28,0.00013833,2]
[340487668,1729314643228,-40432.24570171,0.00013833,2]
[340487669,1729314643239,-151.0,0.00013834,2]
[340487670,1729314643248,-151.0,0.00013834,2]
[340487671,1729314643258,-151.0,0.00013834,2]
[340487672,1729314643268,-151.0,0.00013834,2]
[340487673,1729314643277,-151.0,0.00013834,2]
[340487674,1729314643286,-151.0,0.00013834,2]
[340487675,1729314643296,-184.608531,0.00013834,2]
[340487676,1729314643305,-184.608531,0.00013834,2]
[340487677,1729314643314,-184.608531,0.00013834,2]
[340487678,1729314643324,-184.608531,0.00013834,2]
[340487679,1729314643334,-56307.32554401,0.00013834,2]
[340487683,1729315378783,1000.0,0.00027,60]
[340487761,1729315832382,-168.659203,0.0001253,2]
[340487763,1729315832392,-168.659203,0.00012596,2]
[340487765,1729315832402,-168.659203,0.00012661,2]
[340487767,1729315832411,-165.35240815,0.00012726,2]
[340487811,1729315838565,-3.30679485,0.00012726,2]
[340487813,1729315838576,-168.659203,0.00012791,2]
[340487815,1729315838587,-168.659203,0.00012857,2]
[340487817,1729315838597,-168.659203,0.00012922,2]
[340487819,1729315838607,-168.659203,0.00012987,2]
[340487821,1729315838619,-168.659203,0.00013053,2]
[340487823,1729315838629,-168.659203,0.00013118,2]
[340487826,1729315838641,-168.659203,0.00013183,2]
[340487828,1729315838651,-151.0892592,0.00013278,2]
[340487829,1729315838662,-302.1785184,0.00013278,2]
[340487830,1729315838672,-447.0298175,0.00013552,2]
[340487831,1729315838683,-1301.49443704,0.00013598,2]
[340487832,1729315838692,-1180.86487357,0.000136,2]
[340487833,1729315838902,-1319.13512643,0.000136,2]
[340487834,1729315838912,-300.0,0.00013672,2]
[340487835,1729315838922,-300.0,0.00013672,2]
[340487836,1729315838932,-600.20994717,0.00013673,2]
[340487837,1729315838944,-504.03930073,0.00013673,2]
[340487838,1729315838955,-461.40276919,0.00013673,2]
[340487839,1729315838967,-38.59723081,0.00013673,2]
[340487840,1729315838978,-500.0,0.00013673,2]
[340487841,1729315838988,-500.0,0.00013673,2]
[340487842,1729315838997,-500.0,0.00013673,2]
[340487843,1729315839006,-46.73460622,0.00013673,2]
[340487847,1729315840217,-453.26539378,0.00013673,2]
[340487848,1729315840229,-157.17850516,0.00013688,2]
[340487849,1729315840239,-61.33546941,0.00013688,2]
[340487864,1729315846213,-562.98055713,0.00013688,2]
[340487865,1729315846227,-524.68895133,0.00013688,2]
[340487868,1729316488524,150.77162916,0.00027,60]
[340487915,1729317032490,-172.51,0.00010959,2]
[340487916,1729317032500,-862.58,0.00010959,2]
[340487917,1729317032509,-1594.41508325,0.00011255,2]
[340487919,1729317032549,-1405.58491675,0.00011255,2]
[340487921,1729317032558,-501.92043,0.00011332,2]
[340487923,1729317032567,-250.0,0.00011332,2]
[340487925,1729317032577,-300.0,0.00011359,2]
[340487927,1729317032586,-300.0,0.00011359,2]
[340487929,1729317032595,-15922.5880025,0.0001136,2]
[340487930,1729317032604,-2825.7888288,0.00011362,2]
[340487932,1729317032613,-162.270674,0.00011697,2]
[340487934,1729317032622,-162.270674,0.00011753,2]
[340487936,1729317032634,-162.270674,0.00011808,2]
[340487938,1729317032643,-162.270674,0.00011863,2]
[340487940,1729317032653,-162.270674,0.00011919,2]
[340487942,1729317032662,-162.270674,0.00011974,2]
[340487944,1729317032672,-162.270674,0.0001203,2]
[340487946,1729317032681,-162.270674,0.00012085,2]
[340487948,1729317032690,-162.270674,0.00012141,2]
[340487950,1729317032699,-162.270674,0.00012196,2]
[340487952,1729317032708,-162.270674,0.00012251,2]
[340487954,1729317032718,-162.270674,0.00012307,2]
[340487957,1729317032727,-163.258603,0.00012464,2]
[340487959,1729317032736,-163.258603,0.0001247,2]
[340487961,1729317032745,-163.258603,0.00012475,2]
[340487963,1729317032755,-420.0,0.00012478,2]
[340487965,1729317032769,-163.258603,0.00012481,2]
[340487967,1729317032780,-163.258603,0.00012487,2]
[340487969,1729317032790,-163.258603,0.00012492,2]
[340487971,1729317032800,-163.258603,0.00012498,2]
[340487973,1729317032810,-163.258603,0.00012504,2]
[340487975,1729317032820,-163.258603,0.00012509,2]
[340487977,1729317032832,-163.258603,0.00012515,2]
[340487979,1729317032842,-163.258603,0.00012521,2]
[340487981,1729317032853,-163.258603,0.00012526,2]
[340487984,1729317032863,-183.37492269,0.00013568,2]
[340487986,1729317032874,-1707.6576133,0.00013568,2]
[340487988,1729317032891,-987.72,0.00013568,2]
[340487990,1729317032900,-150.112233,0.000136,2]
[340487992,1729317032909,-511.76249832,0.000136,2]
[340487994,1729317032920,-10035.87267025,0.00013658,2]
[340488137,1729317040465,-4023.96118282,0.00013658,2]
[340488148,1729317043569,-12283.1875123,0.00013658,2]
[340488152,1729317046429,-133098.4933783,0.00013658,2]
[340488202,1729318232605,-337.93781919,0.00010959,2]
[340488203,1729318232617,-444.66218081,0.00010959,2]
[340488204,1729318232627,-262.32781919,0.00011942,2]
[340488205,1729318232665,-37.67218081,0.00011942,2]
[340488206,1729318232674,-300.0,0.00011942,2]
[340488207,1729318232684,-24880.0,0.00011943,2]
[340488208,1729318232694,-158.664659,0.00012036,2]
[340488209,1729318232703,-158.664659,0.00012081,2]
[340488210,1729318232712,-158.664659,0.00012126,2]
[340488211,1729318232722,-158.664659,0.00012171,2]
[340488212,1729318232732,-158.664659,0.00012216,2]
[340488213,1729318232742,-158.664659,0.0001226,2]
[340488214,1729318232751,-158.664659,0.00012305,2]
[340488215,1729318232760,-158.664659,0.0001235,2]
[340488216,1729318232770,-158.664659,0.00012395,2]
[340488217,1729318232781,-158.664659,0.0001244,2]
[340488218,1729318232791,-158.664659,0.00012484,2]
[340488219,1729318232801,-158.664659,0.00012529,2]
[340488220,1729318232810,-158.664659,0.00012574,2]
[340488221,1729318232820,-158.664659,0.00012619,2]
[340488222,1729318232830,-158.664659,0.00012664,2]
[340488223,1729318232839,-420.0,0.00013111,2]
[340488224,1729318232849,-1494.20041162,0.00013488,2]
[340488225,1729318232858,-510.7488504,0.00013556,2]
[340488226,1729318232869,-206.13802249,0.00013559,2]
[340488227,1729318232880,-12455.73132105,0.00013561,2]
[340488228,1729318232889,-2500.0,0.000136,2]
[340488229,1729318232898,-76354.81007909,0.00013646,2]
[340488260,1729318240781,-194.10261661,0.00013488,2]
[340488261,1729318240793,-2998.38605258,0.00013646,2]
[340488262,1729318240806,-12097.23331023,0.00013646,2]
[340488263,1729318240817,-64968.9260154,0.00013646,2]
[340488264,1729318240827,-151.0,0.00013656,2]
[340488265,1729318240838,-151.0,0.00013656,2]
[340488266,1729318240848,-151.0,0.00013656,2]
[340488267,1729318240859,-151.0,0.00013656,2]
[340488268,1729318240868,-151.0,0.00013656,2]
[340488269,1729318240879,-151.0,0.00013656,2]
[340488270,1729318240889,-151.0,0.00013656,2]
[340488271,1729318240898,-151.0,0.00013656,2]
[340488272,1729318240908,-151.0,0.00013656,2]
[340488273,1729318240918,-173.747596,0.00013656,2]
[340488274,1729318240927,-153.678475,0.00013656,2]
[340488275,1729318240939,-151.0,0.00013656,2]
[340488276,1729318240950,-151.0,0.00013656,2]
[340488277,1729318240962,-151.0,0.00013656,2]
[340488278,1729318240974,-151.0,0.00013656,2]
[340488279,1729318240985,-151.0,0.00013656,2]
[340488280,1729318240995,-151.0,0.00013656,2]
[340488281,1729318241005,-151.0,0.00013656,2]
[340488282,1729318241015,-151.0,0.00013656,2]
[340488283,1729318241026,-213.662587,0.00013656,2]
[340488284,1729318241036,-151.0,0.00013656,2]
[340488285,1729318241047,-151.0,0.00013656,2]
[340488286,1729318241059,-151.0,0.00013656,2]
[340488287,1729318241069,-151.0,0.00013656,2]
[340488288,1729318241079,-151.0,0.00013656,2]
[340488289,1729318241088,-151.0,0.00013656,2]
[340488290,1729318241098,-151.0,0.00013656,2]
[340488291,1729318241109,-151.0,0.00013656,2]
[340488292,1729318241120,-217.238697,0.00013656,2]
[340488293,1729318241131,-217.238697,0.00013656,2]
[340488294,1729318241142,-217.238697,0.00013656,2]
[340488295,1729318241151,-217.238697,0.00013656,2]
[340488296,1729318241160,-151.0,0.00013656,2]
[340488297,1729318241170,-151.0,0.00013656,2]
[340488298,1729318241180,-151.0,0.00013656,2]
[340488299,1729318241189,-151.0,0.00013656,2]
[340488300,1729318241199,-151.0,0.00013656,2]
[340488301,1729318241208,-151.0,0.00013656,2]
[340488302,1729318241218,-230.201429,0.00013656,2]
[340488303,1729318241227,-230.201429,0.00013656,2]
[340488304,1729318241237,-230.201429,0.00013656,2]
[340488305,1729318241246,-230.201429,0.00013656,2]
[340488306,1729318241255,-151.0,0.00013656,2]
[340488307,1729318241265,-151.0,0.00013656,2]
[340488308,1729318241275,-151.0,0.00013656,2]
[340488309,1729318241285,-151.0,0.00013656,2]
[340488310,1729318241296,-239.004537,0.00013656,2]
[340488311,1729318241306,-151.0,0.00013656,2]
[340488312,1729318241317,-151.0,0.00013656,2]
[340488313,1729318241329,-151.0,0.00013656,2]
[340488314,1729318241340,-151.0,0.00013656,2]
[340488315,1729318241349,-237.353307,0.00013656,2]
[340488316,1729318241359,-151.0,0.00013656,2]
[340488317,1729318241368,-151.0,0.00013656,2]
[340488318,1729318241378,-151.0,0.00013656,2]
[340488319,1729318241387,-151.0,0.00013656,2]
[340488320,1729318241398,-151.0,0.00013656,2]
[340488321,1729318241409,-151.0,0.00013656,2]
[340488322,1729318241420,-195.101725,0.00013656,2]
[340488323,1729318241432,-191.917417,0.00013656,2]
[340488324,1729318241441,-764.348731,0.00013656,2]
[340488325,1729318241453,-764.348731,0.00013656,2]
[340488326,1729318241463,-764.348731,0.00013656,2]
[340488327,1729318241473,-764.348731,0.00013656,2]
[340488328,1729318241484,-401.907224,0.00013656,2]
[340488329,1729318241494,-401.907224,0.00013656,2]
[340488330,1729318241505,-401.907224,0.00013656,2]
[340488331,1729318241515,-401.907224,0.00013656,2]
[340488332,1729318241526,-151.0,0.00013656,2]
[340488333,1729318241537,-151.0,0.00013656,2]
[340488334,1729318241547,-151.0,0.00013656,2]
[340488335,1729318241558,-151.0,0.00013656,2]
[340488336,1729318241573,-182900.858884,0.00013658,2]
[340488337,1729318241584,-123183.98889579,0.00013658,2]
[340488351,1729318528278,235.0380722,0.00024999,31]
[340488372,1729319420151,1532.0,0.00027,60]
[340488389,1729319432020,-5267.47999749,0.00011627,2]
[340488393,1729319438103,-645.9168,0.00011627,2]
[340488428,1729319439830,-335.68593972,0.00011627,2]
[340488441,1729319445803,-457.13726334,0.00011627,2]
[340488448,1729320220562,300.37,0.000106,2]
[340488452,1729320470682,6248.074872,0.00010564,2]
[340488538,1729320638320,-300.0,0.00010563,2]
[340488540,1729320638330,-300.0,0.00010563,2]
[340488543,1729320638342,-909.59920589,0.00010564,2]
[340488842,1729320643262,-8487.99243636,0.00010564,2]
[340488843,1729320643273,-3601.2939011,0.00010564,2]
[340488850,1729320646131,-5653.03958465,0.00010564,2]
[340488851,1729320646141,-160.0006588,0.00010874,2]
[340488852,1729320646151,-692.55,0.00010959,2]
[340488853,1729320646165,-577.12,0.00010959,2]
[340488854,1729320646175,-480.93,0.00010959,2]
[340488855,1729320646185,-400.78,0.00010959,2]
[340488856,1729320646195,-333.98,0.00010959,2]
[340488857,1729320646206,-278.32,0.00010959,2]
[340488858,1729320646215,-231.93,0.00010959,2]
[340488859,1729320646227,-193.28,0.00010959,2]
[340488860,1729320646237,-3000.0,0.0001104,2]
[340488861,1729320646247,-420.0,0.00011612,2]
[340488862,1729320646258,-587.0,0.00012766,2]
[340488863,1729320646267,-1574.24048055,0.00012999,2]
[340488864,1729320646277,-176.06160525,0.00013,2]
[340488865,1729320646286,-194.10261661,0.00013,2]
[340488866,1729320646296,-54891.90780567,0.00013,2]
[340488867,1729320646307,-355.301,0.00013,2]
[340488868,1729320646317,-396.1607352,0.00013432,2]
[340488869,1729320646326,-150.112233,0.000135,2]
[340488870,1729320646336,-34719.88708458,0.00013502,2]
[340488876,1729321125805,301.76,0.00027,60]
[340488897,1729321832303,-161.06,0.00010959,2]
[340488898,1729321832312,-3000.0,0.00011606,2]
[340488899,1729321832322,-300.0,0.00011863,2]
[340488900,1729321832331,-300.0,0.00011863,2]
[340488901,1729321832341,-5747.24140036,0.00011864,2]
[340488966,1729321839998,-805.35,0.00010959,2]
[340488967,1729321840008,-14737.87829523,0.00011864,2]
[340488968,1729321840022,-4414.88030441,0.00011864,2]
[340488969,1729321840032,-208.333333,0.0001208,2]
[340488971,1729321840043,-208.333333,0.0001271,2]
[340488972,1729321840052,-153.0,0.000128,2]
[340488973,1729321840062,-153.0,0.000128,2]
[340488975,1729321840072,-23.3543665,0.000128,2]
[340488976,1729321840085,-129.6456335,0.000128,2]
[340488977,1729321840095,-153.0,0.000128,2]
[340488978,1729321840105,-153.0,0.000128,2]
[340488979,1729321840114,-248.52155454,0.000128,2]
[340488980,1729321840124,-64.97581542,0.000129,2]
[340488981,1729321840136,-898.06357289,0.000129,2]
[340489048,1729322864260,6233.58,0.0001,2]
[340489093,1729323040235,-439.78132206,0.00010959,2]
[340489108,1729323043586,-385.52867794,0.00010959,2]
[340489109,1729323043598,-525.0323156,0.00012207,2]
[340489110,1729323043611,-300.0,0.00012215,2]
[340489111,1729323043621,-300.0,0.00012215,2]
[340489112,1729323043631,-3625.76799034,0.00012216,2]
[340489120,1729323779129,-300.0,0.00012219,2]
[340489121,1729323779154,-300.0,0.00012219,2]
[340489122,1729323779178,-10393.4766771,0.0001222,2]
[340489123,1729323779201,-1484.365083,0.00012441,2]
[340489124,1729323779224,-187.594719,0.00012536,2]
[340489125,1729323779247,-507.34262856,0.00013323,2]
[340489126,1729323779270,-1871.66658691,0.00013392,2]
[340489127,1729323779293,-682.2079426,0.00013395,2]
[340489128,1729323779315,-420.0,0.00013411,2]
[340489129,1729323779336,-501.48149301,0.00013473,2]
[340489130,1729323779358,-500.0,0.00013473,2]
[340489131,1729323779380,-500.0,0.00013473,2]
[340489132,1729323779402,-788.79828711,0.0001349,2]
[340489133,1729323782485,300.0,0.00012219,2]
[340489134,1729323783216,420.0,0.00013411,2]
[340489135,1729323788363,-236737.062117,0.00013491,2]
[340489136,1729323788387,-92314.00446571,0.00013491,2]
[340489178,1729324232651,-606.21,0.00010959,2]
[340489180,1729324232661,-505.18,0.00010959,2]
[340489182,1729324232671,-420.98,0.00010959,2]
[340489184,1729324232681,-350.82,0.00010959,2]
[340489186,1729324232691,-292.35,0.00010959,2]
[340489188,1729324232701,-2195.05615194,0.00012002,2]
[340489192,1729324232727,-688.33132434,0.00012002,2]
[340489256,1729324239731,-22016.61252372,0.00012002,2]
[340489257,1729324239741,-243.393476,0.00012589,2]
[340489258,1729324239751,-243.393476,0.00012624,2]
[340489259,1729324239761,-243.393476,0.00012658,2]
[340489260,1729324239772,-600.0,0.00012692,2]
[340489261,1729324239782,-243.393476,0.00012693,2]
[340489262,1729324239793,-243.393476,0.00012727,2]
[340489263,1729324239804,-243.393476,0.00012762,2]
[340489264,1729324239814,-243.393476,0.00012796,2]
[340489265,1729324239824,-243.393476,0.00012831,2]
[340489266,1729324239835,-243.393476,0.00012865,2]
[340489267,1729324239845,-302.023371,0.00012878,2]
[340489268,1729324239856,-210.4166343,0.00012878,2]
[340489269,1729324239866,-153.0,0.00012878,2]
[340489270,1729324239876,-243.393476,0.000129,2]
[340489271,1729324239886,-153.0,0.000129,2]
[340489272,1729324239895,-153.0,0.000129,2]
[340489273,1729324239905,-153.0,0.000129,2]
[340489274,1729324239917,-243.393476,0.00012935,2]
[340489275,1729324239928,-243.393476,0.00012969,2]
[340489276,1729324239940,-243.393476,0.00013004,2]
[340489277,1729324239950,-243.393476,0.00013038,2]
[340489278,1729324239962,-243.393476,0.00013073,2]
[340489279,1729324239973,-243.393476,0.00013107,2]
[340489280,1729324239987,-243.393476,0.00013142,2]
[340489281,1729324239999,-300.0,0.00013175,2]
[340489282,1729324240009,-243.393476,0.00013176,2]
[340489283,1729324240020,-243.393476,0.00013211,2]
[340489284,1729324240032,-243.393476,0.00013245,2]
[340489285,1729324240042,-8720.425986,0.00013299,2]
[340489286,1729324240053,-1637.70826352,0.00013373,2]
[340489287,1729324240064,-257.76985446,0.00013391,2]
[340489288,1729324240075,-545.766354,0.00013395,2]
[340489289,1729324240086,-37605.4925204,0.00013471,2]
[340489293,1729324240751,-638.36546201,0.00013471,2]
[340489297,1729324243804,-243.62,0.00010959,2]
[340489298,1729324243816,-49010.75512166,0.00013471,2]
[340489299,1729324243830,-804.09197599,0.00013471,2]
[340489300,1729324246895,-3149.87798774,0.00013471,2]
[340489304,1729324804160,500.0,0.0001,2]
[340489305,1729325223159,24900.0,0.00010231,2]
[340489404,1729325439225,-187.59472,0.00010471,2]
[340489405,1729325439237,-187.59472,0.00010744,2]
[340489406,1729325439250,-193.90461388,0.00010859,2]
[340489407,1729325439259,-203.02,0.00010959,2]
[340489408,1729325439269,-169.18,0.00010959,2]
[340489409,1729325439278,-845.94,0.00010959,2]
[340489410,1729325439288,-187.59472,0.00011017,2]
[340489411,1729325439298,-250.0,0.00011116,2]
[340489412,1729325439308,-170.944201,0.00011167,2]
[340489413,1729325439317,-2370.7849648,0.00011178,2]
[340489414,1729325439327,-170.944201,0.00011222,2]
[340489415,1729325439337,-300.0,0.00011733,2]
[340489416,1729325439347,-9918.94797132,0.00011733,2]
[340489417,1729325439357,-300.0,0.00011733,2]
[340489418,1729325439366,-414.7253715,0.00011956,2]
[340489419,1729325439376,-414.7253715,0.00011956,2]
[340489420,1729325439385,-414.7253715,0.00012478,2]
[340489421,1729325439395,-210.5530868,0.00012578,2]
[340489422,1729325439404,-414.7253715,0.00012578,2]
[340489423,1729325439414,-837.4318405,0.00012778,2]
[340489424,1729325439424,-420.0,0.00012884,2]
[340489425,1729325439434,-154.41706894,0.0001289,2]
[340489426,1729325439444,-154.41706891,0.00012893,2]
[340489427,1729325439455,-154.41706891,0.00012897,2]
[340489428,1729325439465,-154.41706891,0.000129,2]
[340489429,1729325439475,-420.0,0.00012906,2]
[340489430,1729325439485,-500.0,0.00012973,2]
[340489431,1729325439494,-500.0,0.00012973,2]
[340489432,1729325439505,-503.9593197,0.00012973,2]
[340489433,1729325439515,-503.70711984,0.00012973,2]
[340489434,1729325439525,-211.98833301,0.00012973,2]
[340489435,1729325439534,-522.85631834,0.00012973,2]
[340489436,1729325439543,-503.10143032,0.00012973,2]
[340489437,1729325439553,-587.35150672,0.00012973,2]
[340489438,1729325439563,-500.0,0.00012973,2]
[340489439,1729325439572,-153.0,0.00012978,2]
[340489440,1729325439582,-358.87786674,0.0001299,2]
[340489441,1729325439592,-23437.22529328,0.0001299,2]
[340489443,1729325439604,-3218.30441574,0.0001299,2]
[340489466,1729325442995,-510.72929659,0.00012973,2]
[340489468,1729325443005,-70561.21293069,0.0001299,2]
[340489470,1729325443017,-3549.99999983,0.0001299,2]
[340489475,1729325443098,-11228.6996645,0.0001299,2]
[340489485,1729325445918,-414.7253715,0.00011956,2]
[340489486,1729325445928,-24072.93285596,0.0001299,2]
[340489487,1729325445937,-849.10961875,0.0001299,2]
[340489490,1729325748717,188388.325009,0.0001,2]
[340489502,1729326521594,18803.46474308,0.0001,2]
[340489503,1729326524887,1201.49805693,0.00027,120]
[340489504,1729326535819,-3000.0,0.00011474,2]
[340489505,1729326535841,-184.137482,0.0001186,2]
[340489506,1729326535865,-184.137482,0.0001189,2]
[340489507,1729326535887,-184.137482,0.00011919,2]
[340489508,1729326535909,-300.0,0.0001198,2]
[340489509,1729326535931,-300.0,0.0001198,2]
[340489510,1729326535957,-17639.7074091,0.00011981,2]
[340489511,1729326535980,-8888.06308996,0.0001275,2]